[Event "EYCC Open-U16 2019"]
[Site "Bratislava"]
[Date "2019.08.10"]
[Round "9.39"]
[White "Vorisek, Jakub"]
[Black "Ghachava, Akaki"]
[Result "1-0"]
[ECO "E12"]
[WhiteElo "2071"]
[BlackElo "1777"]
[Annotator "NA RC"]
[PlyCount "65"]
[EventDate "2019.08.02"]
[EventType "swiss"]
[EventCountry "SVK"]
[SourceTitle "playchess.com"]
[Source "ChessBase"]
[SourceQuality "1"]
[TimeControl "40/5400+30:1800+30"]

1. d4 {[%emt 0:00:00]} Nf6 {[%emt 0:00:03]} 2. c4 {[%emt 0:00:00]} e6 {[%emt 0:00:02]} 3. Nf3 {[%emt 0:00:33]} b6 {[%emt 0:00:03]} 4. a3 {[%emt 0:00:45]} Bb7 {[%emt 0:01:14]} 5. Nc3 {[%emt 0:00:24]} d5 {[%emt 0:04:02]} 6. cxd5 {[%emt 0:00:57]} Nxd5 {[%emt 0:01:09]} 7. Qc2 {[%emt 0:01:51]} Be7 {[%emt 0:00:43]} 8. e4 {[%emt 0:00:43]} Nxc3 {[%emt 0:00:03]} 9. bxc3 {[%emt 0:00:07]} O-O {[%emt 0:01:50]} 10. Bd3 {[%emt 0:00:29]} c5 {[%emt 0:01:39]} 11. O-O {[%emt 0:01:05]} Qc7 {[%emt 0:03:54]} 12. Qe2 {[%emt 0:00:49]} Qc8 {[%emt 0:05:51]} 13. Bf4 {[%emt 0:09:09]} Ba6 {[%emt 0:01:53]} 14. a4 {[%emt 0:06:06]} Bxd3 {[%emt 0:02:26]} 15. Qxd3 {[%emt 0:00:05]} Rd8 {[%emt 0:00:02]} 16. Rfd1 {[%emt 0:07:17]} Nd7 {[%emt 0:06:10]} 17. Qe2 {[%emt 0:13:17]} Bf6 {[%emt 0:09:10]} 18. Bd6 {[%emt 0:06:07]} Re8 {[%emt 0:01:40]} 19. e5 {[%emt 0:01:35]} Be7 {[%emt 0:01:10]} 20. Bxe7 {[%emt 0:00:55]} Rxe7 {[%emt 0:00:01]} 21. Qe4 {[%emt 0:06:57]} f5 {[%emt 0:06:28]} 22. Qh4 {[%emt 0:06:12]} Re8 {[%emt 0:01:08]} 23. d5 {[%emt 0:01:44]} exd5 {[%emt 0:00:36]} 24. Rxd5 {[%emt 0:00:08]} Nf8 {[%emt 0:02:36]} 25. Rad1 {[%emt 0:09:34]} Qc7 {[%emt 0:04:52]} 26. Qc4 {[%emt 0:08:19]} Kh8 {[%emt 0:02:15]} 27. Rd6 {[%emt 0:00:35]} Qe7 {[%emt 0:05:03]} 28. h4 {[%emt 0:02:17]} Ng6 {[%emt 0:02:29]} 29. e6 {[%emt 0:05:34]} Nf8 {[%emt 0:04:30]} 30. Ng5 {[%emt 0:01:51]} h6 {[%emt 0:03:06]} 31. Nf7+ {[%emt 0:00:06]} Kh7 {[%emt 0:00:13]} 32. Re1 {[%emt 0:00:49]} Nxe6 {[%emt 0:10:53]} 33. Rexe6 {[%emt 0:04:15]} 1-0

[Event "EYCC Open-U16 2019"]
[Site "Bratislava"]
[Date "2019.08.10"]
[Round "9.40"]
[White "Fuglestein, Sander"]
[Black "Bin-Suhayl, Ieysaa"]
[Result "1/2-1/2"]
[ECO "A57"]
[WhiteElo "1997"]
[BlackElo "2084"]
[Annotator "NA RC"]
[PlyCount "71"]
[EventDate "2019.08.02"]
[EventType "swiss"]
[EventCountry "SVK"]
[SourceTitle "playchess.com"]
[Source "ChessBase"]
[SourceQuality "1"]
[TimeControl "40/5400+30:1800+30"]

1. d4 {[%emt 0:00:00]} Nf6 {[%emt 0:00:00]} 2. c4 {[%emt 0:00:00]} c5 {[%emt 0:00:00]} 3. d5 {[%emt 0:00:00]} b5 {[%emt 0:00:00]} 4. cxb5 {[%emt 0:00:02]} a6 {[%emt 0:00:00]} 5. e3 {[%emt 0:00:10]} axb5 {[%emt 0:00:00]} 6. Bxb5 {[%emt 0:00:05]} Qa5+ {[%emt 0:00:00]} 7. Nc3 {[%emt 0:00:11]} Bb7 {[%emt 0:00:00]} 8. Bd2 {[%emt 0:02:07]} Qb6 {[%emt 0:00:00]} 9. Nf3 {[%emt 0:01:15]} Nxd5 {[%emt 0:00:16]} 10. Nxd5 {[%emt 0:00:46]} Bxd5 {[%emt 0:00:05]} 11. a4 {[%emt 0:00:19]} e6 {[%emt 0:00:18]} 12. Bc3 {[%emt 0:00:47]} Be7 {[%emt 0:00:31]} 13. O-O {[%emt 0:00:25]} O-O {[%emt 0:00:08]} 14. Qe2 {[%emt 0:00:48]} Qb7 {[%emt 0:07:36]} 15. Nd2 {[%emt 0:03:37]} f5 {[%emt 0:00:34]} 16. f3 {[%emt 0:01:59]} Bc6 {[%emt 0:02:52]} 17. e4 {[%emt 0:05:20]} d5 {[%emt 0:02:33]} 18. exd5 {[%emt 0:10:47]} exd5 {[%emt 0:00:07]} 19. Nb3 {[%emt 0:04:54]} Bxb5 {[%emt 0:12:34]} 20. axb5 {[%emt 0:01:34]} Rxa1 {[%emt 0:01:17]} 21. Rxa1 {[%emt 0:01:03]} d4 {[%emt 0:05:22]} 22. Bd2 {[%emt 0:08:09]} Qd5 {[%emt 0:10:33]} 23. Qxe7 {[%emt 0:07:08]} Qxb3 {[%emt 0:00:05]} 24. Ra7 {[%emt 0:14:54]} Rf7 {[%emt 0:00:04]} 25. Qxf7+ {[%emt 0:05:00]} Qxf7 {[%emt 0:00:10]} 26. Rxf7 {[%emt 0:00:08]} Kxf7 {[%emt 0:00:05]} 27. b6 {[%emt 0:01:53]} Nc6 {[%emt 0:03:51]} 28. b7 {[%emt 0:01:28]} Ke6 {[%emt 0:00:31]} 29. Bf4 {[%emt 0:02:10]} Kd5 {[%emt 0:00:10]} 30. b8=Q {[%emt 0:01:26]} Nxb8 {[%emt 0:00:04]} 31. Bxb8 {[%emt 0:00:06]} Kc4 {[%emt 0:01:41]} 32. Kf2 {[%emt 0:12:46]} Kb3 {[%emt 0:00:37]} 33. Ke1 {[%emt 0:04:22]} Kc2 {[%emt 0:00:05]} 34. Be5 {[%emt 0:02:02]} d3 {[%emt 0:06:36]} 35. Bc3 {[%emt 0:02:54]} c4 {[%emt 0:00:08]} 36. g3 {[%emt 0:03:46]} 1/2-1/2

[Event "EYCC Open-U16 2019"]
[Site "Bratislava"]
[Date "2019.08.10"]
[Round "9.43"]
[White "Pobor, Milo"]
[Black "Darmogray, Makar"]
[Result "1/2-1/2"]
[ECO "C49"]
[WhiteElo "2067"]
[BlackElo "2004"]
[Annotator "NA RC"]
[PlyCount "35"]
[EventDate "2019.08.02"]
[EventType "swiss"]
[EventCountry "SVK"]
[SourceTitle "playchess.com"]
[Source "ChessBase"]
[SourceQuality "1"]
[TimeControl "40/5400+30:1800+30"]

1. e4 {[%emt 0:00:00]} e5 {[%emt 0:00:00]} 2. Nf3 {[%emt 0:00:00]} Nc6 {[%emt 0:00:00]} 3. Nc3 {[%emt 0:00:00]} Nf6 {[%emt 0:00:04]} 4. Bb5 Bb4 {[%emt 0:01:31]} 5. O-O {[%emt 0:00:00]} d6 6. Nd5 Nxd5 {[%emt 0:14:19]} 7. exd5 {[%emt 0:10:44]} a6 {[%emt 0:00:04]} 8. Ba4 {[%emt 0:09:08]} b5 {[%emt 0:00:49]} 9. dxc6 {[%emt 0:01:13]} bxa4 {[%emt 0:00:06]} 10. c3 Bc5 11. d4 {[%emt 0:03:04]} Bb6 {[%emt 0:05:35]} 12. dxe5 {[%emt 0:10:53]} dxe5 {[%emt 0:00:32]} 13. Qxa4 f6 {[%emt 0:06:03]} 14. b3 {[%emt 0:06:24]} Qd3 15. Ba3 {[%emt 0:13:32]} Qxc3 {[%emt 0:16:10]} 16. Bb4 {[%emt 0:02:37]} Qd3 17. Rad1 {[%emt 0:08:30]} Qb5 {[%emt 0:04:58]} 18. Qa3 {[%emt 0:00:58]} 1/2-1/2

[Event "EYCC Open-U16 2019"]
[Site "Bratislava"]
[Date "2019.08.10"]
[Round "9.44"]
[White "Stankovic, Milos M"]
[Black "Vujovic, Savo"]
[Result "1/2-1/2"]
[ECO "E81"]
[WhiteElo "2270"]
[BlackElo "2023"]
[Annotator "ChessBase"]
[PlyCount "117"]
[EventDate "2019.08.02"]
[EventType "swiss"]
[EventCountry "SVK"]
[SourceTitle "playchess.com"]
[Source "ChessBase"]
[SourceQuality "1"]
[TimeControl "40/5400+30:1800+30"]

1. d4 {[%emt 0:00:00]} Nf6 {[%emt 0:00:00]} 2. c4 {[%emt 0:00:00]} g6 {[%emt 0:00:00]} 3. Nc3 {[%emt 0:00:00]} Bg7 {[%emt 0:00:03]} 4. e4 {[%emt 0:00:00]} O-O {[%emt 0:00:07]} 5. f3 {[%emt 0:00:00]} d6 {[%emt 0:00:11]} 6. Be3 {[%emt 0:00:00]} c6 {[%emt 0:00:15]} 7. Nge2 {[%emt 0:01:02]} a6 {[%emt 0:00:18]} 8. c5 {[%emt 0:05:00]} b5 {[%emt 0:05:11]} 9. cxb6 {[%emt 0:02:02]} Nbd7 {[%emt 0:00:41]} 10. g4 {[%emt 0:08:07]} Nxb6 {[%emt 0:03:59]} 11. Ng3 {[%emt 0:00:18]} Nfd7 {[%emt 0:02:50]} 12. Be2 {[%emt 0:03:09]} e5 {[%emt 0:04:52]} 13. h4 {[%emt 0:02:11]} d5 {[%emt 0:02:43]} 14. exd5 {[%emt 0:05:31]} Nxd5 {[%emt 0:00:36]} 15. Nxd5 {[%emt 0:02:31]} cxd5 {[%emt 0:00:15]} 16. Qd2 {[%emt 0:00:58]} Re8 {[%emt 0:09:37]} 17. Kf2 {[%emt 0:03:55]} e4 {[%emt 0:03:42]} 18. f4 {[%emt 0:07:49]} a5 {[%emt 0:10:56]} 19. f5 {[%emt 0:00:44]} Nf8 {[%emt 0:01:38]} 20. Kg2 {[%emt 0:01:52]} Qb6 {[%emt 0:03:46]} 21. Raf1 {[%emt 0:02:34]} Rb8 {[%emt 0:01:12]} 22. b3 {[%emt 0:00:29]} a4 {[%emt 0:02:01]} 23. bxa4 {[%emt 0:03:02]} h5 {[%emt 0:06:31]} 24. fxg6 {[%emt 0:04:02]} fxg6 {[%emt 0:01:47]} 25. gxh5 {[%emt 0:00:12]} Qb2 {[%emt 0:01:37]} 26. Rd1 {[%emt 0:07:47]} Ne6 {[%emt 0:03:21]} 27. Bb5 {[%emt 0:01:31]} Qxd2+ {[%emt 0:00:28]} 28. Rxd2 {[%emt 0:00:04]} Rf8 {[%emt 0:00:25]} 29. Rf1 {[%emt 0:05:46]} Rxf1 {[%emt 0:00:21]} 30. Kxf1 {[%emt 0:00:10]} Nc7 {[%emt 0:00:43]} 31. hxg6 {[%emt 0:01:47]} Nxb5 {[%emt 0:01:06]} 32. axb5 {[%emt 0:00:37]} Rxb5 {[%emt 0:00:08]} 33. h5 {[%emt 0:00:07]} Rb6 {[%emt 0:00:53]} 34. Kg2 {[%emt 0:00:17]} Bf8 {[%emt 0:00:22]} 35. Bg5 {[%emt 0:04:21]} Bg4 {[%emt 0:00:50]} 36. Rc2 {[%emt 0:01:10]} Bxh5 {[%emt 0:00:30]} 37. Nxh5 {[%emt 0:02:10]} Rxg6 {[%emt 0:00:07]} 38. Nf6+ {[%emt 0:00:06]} Kh8 {[%emt 0:01:06]} 39. Kh3 {[%emt 0:06:36]} Rxg5 {[%emt 0:00:28]} 40. Rc7 {[%emt 0:00:00]} Rg7 {[%emt 0:00:00]} 41. Nxd5 {[%emt 0:03:08]} e3 {[%emt 0:15:24]} 42. Rc8 {[%emt 0:17:15]} e2 {[%emt 0:00:25]} 43. Re8 {[%emt 0:00:27]} Rd7 {[%emt 0:01:10]} 44. Nf4 {[%emt 0:05:10]} e1=Q {[%emt 0:02:28]} 45. Rxe1 {[%emt 0:00:08]} Rxd4 {[%emt 0:00:13]} 46. Ne6 {[%emt 0:00:40]} Rd3+ {[%emt 0:00:27]} 47. Kg4 {[%emt 0:00:05]} Bb4 {[%emt 0:01:26]} 48. Rb1 {[%emt 0:00:37]} Bd6 {[%emt 0:00:28]} 49. Rb7 {[%emt 0:00:15]} Ra3 {[%emt 0:02:16]} 50. Rd7 {[%emt 0:00:24]} Bb4 {[%emt 0:01:14]} 51. Rb7 {[%emt 0:00:38]} Bc3 {[%emt 0:00:49]} 52. Kf5 {[%emt 0:00:28]} Rxa2 {[%emt 0:02:13]} 53. Kg6 {[%emt 0:00:08]} Ra8 {[%emt 0:01:23]} 54. Rc7 {[%emt 0:00:27]} Rg8+ {[%emt 0:01:15]} 55. Kf7 {[%emt 0:01:37]} Rg3 {[%emt 0:01:34]} 56. Rc4 {[%emt 0:01:35]} Rf3+ {[%emt 0:00:22]} 57. Nf4 {[%emt 0:01:36]} Bd2 {[%emt 0:02:00]} 58. Kg6 {[%emt 0:00:25]} Rg3+ {[%emt 0:00:24]} 59. Kf5 {[%emt 0:00:39]} 1/2-1/2

[Event "EYCC Open-U16 2019"]
[Site "Bratislava"]
[Date "2019.08.10"]
[Round "9.45"]
[White "Viczencz, Peter"]
[Black "Sanger, Jake M"]
[Result "1-0"]
[ECO "A00"]
[WhiteElo "2014"]
[BlackElo "1867"]
[Annotator "NA"]
[PlyCount "71"]
[EventDate "2019.08.02"]
[EventType "swiss"]
[EventCountry "SVK"]
[SourceTitle "playchess.com"]
[Source "ChessBase"]
[SourceQuality "1"]
[TimeControl "40/5400+30:1800+30"]

1. e3 {[%emt 0:00:00]} e6 {[%emt 0:00:00]} 2. c4 {[%emt 0:00:00]} d5 {[%emt 0:00:00]} 3. Nf3 {[%emt 0:00:10]} Nf6 {[%emt 0:00:00]} 4. cxd5 {[%emt 0:00:45]} exd5 {[%emt 0:00:03]} 5. d4 {[%emt 0:00:25]} Be7 {[%emt 0:00:36]} 6. Bd3 {[%emt 0:00:15]} O-O {[%emt 0:00:07]} 7. O-O {[%emt 0:00:46]} c6 {[%emt 0:00:06]} 8. Nbd2 {[%emt 0:00:37]} Nbd7 {[%emt 0:00:31]} 9. Qc2 {[%emt 0:00:48]} Re8 {[%emt 0:00:08]} 10. a3 {[%emt 0:01:17]} Nf8 {[%emt 0:00:21]} 11. b4 {[%emt 0:03:45]} a6 {[%emt 0:00:10]} 12. Bb2 {[%emt 0:01:52]} Ne6 {[%emt 0:01:09]} 13. Bc3 {[%emt 0:04:10]} g6 {[%emt 0:01:19]} 14. a4 {[%emt 0:03:02]} Ng7 {[%emt 0:00:33]} 15. b5 {[%emt 0:03:24]} cxb5 {[%emt 0:00:42]} 16. axb5 {[%emt 0:00:18]} a5 {[%emt 0:00:08]} 17. Ne5 {[%emt 0:06:23]} Bf5 {[%emt 0:02:02]} 18. f3 {[%emt 0:04:50]} Bxd3 {[%emt 0:01:04]} 19. Qxd3 {[%emt 0:04:25]} Bd6 {[%emt 0:01:45]} 20. Nb3 {[%emt 0:07:10]} b6 {[%emt 0:00:53]} 21. Nd2 {[%emt 0:06:39]} Nd7 {[%emt 0:07:11]} 22. Ng4 {[%emt 0:04:55]} Qh4 {[%emt 0:08:29]} 23. e4 {[%emt 0:07:00]} h5 {[%emt 0:02:49]} 24. Ne5 {[%emt 0:02:23]} Nxe5 {[%emt 0:06:59]} 25. dxe5 {[%emt 0:00:20]} Bc5+ {[%emt 0:07:53]} 26. Kh1 {[%emt 0:05:04]} d4 {[%emt 0:07:33]} 27. Bb2 {[%emt 0:00:07]} Rxe5 {[%emt 0:01:58]} 28. Nb3 {[%emt 0:01:46]} Rd8 {[%emt 0:09:35]} 29. Ra4 {[%emt 0:05:21]} f5 {[%emt 0:03:45]} 30. Nxd4 {[%emt 0:03:16]} Ne6 {[%emt 0:03:55]} 31. Qb3 {[%emt 0:00:43]} Bxd4 {[%emt 0:07:02]} 32. Bxd4 {[%emt 0:00:34]} Rxd4 {[%emt 0:00:36]} 33. Rxd4 {[%emt 0:00:10]} Kg7 {[%emt 0:00:25]} 34. Rd7+ {[%emt 0:00:59]} Kh6 {[%emt 0:00:47]} 35. Qc3 {[%emt 0:02:09]} Qf6 {[%emt 0:02:49]} 36. Rd5 {[%emt 0:00:39]} 1-0

[Event "EYCC Open-U16 2019"]
[Site "Bratislava"]
[Date "2019.08.10"]
[Round "9.46"]
[White "Martin Barcelo, Carles"]
[Black "Ampelakiotis, Stavros"]
[Result "1-0"]
[ECO "B40"]
[WhiteElo "2012"]
[BlackElo "2080"]
[Annotator "NA"]
[PlyCount "67"]
[EventDate "2019.08.02"]
[EventType "swiss"]
[EventCountry "SVK"]
[SourceTitle "playchess.com"]
[Source "ChessBase"]
[SourceQuality "1"]
[TimeControl "40/5400+30:1800+30"]

1. e4 {[%emt 0:00:00]} c5 {[%emt 0:00:00]} 2. Nf3 {[%emt 0:00:00]} e6 {[%emt 0:00:00]} 3. b3 {[%emt 0:00:00]} Nf6 {[%emt 0:00:00]} 4. e5 {[%emt 0:00:14]} Nd5 {[%emt 0:00:01]} 5. Bb2 {[%emt 0:00:23]} Nc6 {[%emt 0:00:06]} 6. g3 {[%emt 0:00:23]} b6 {[%emt 0:07:14]} 7. Bg2 {[%emt 0:04:07]} Bb7 {[%emt 0:00:06]} 8. O-O {[%emt 0:01:00]} Be7 {[%emt 0:01:14]} 9. c4 {[%emt 0:05:53]} Nc7 {[%emt 0:00:53]} 10. d4 {[%emt 0:01:54]} cxd4 {[%emt 0:00:44]} 11. Nxd4 {[%emt 0:00:30]} Qc8 {[%emt 0:02:52]} 12. Nb5 {[%emt 0:08:40]} O-O {[%emt 0:21:39]} 13. Ba3 {[%emt 0:12:40]} Nxb5 {[%emt 0:07:50]} 14. cxb5 {[%emt 0:04:47]} Nb4 {[%emt 0:03:05]} 15. Bxb7 {[%emt 0:03:19]} Qxb7 {[%emt 0:00:05]} 16. Qd2 {[%emt 0:01:58]} Nd5 {[%emt 0:05:51]} 17. Bxe7 {[%emt 0:01:21]} Nxe7 {[%emt 0:00:06]} 18. Na3 {[%emt 0:01:40]} Nf5 {[%emt 0:04:54]} 19. Nc4 {[%emt 0:04:01]} Rfd8 {[%emt 0:04:04]} 20. Rfd1 {[%emt 0:01:41]} h5 {[%emt 0:02:07]} 21. h4 {[%emt 0:03:47]} Rac8 {[%emt 0:03:50]} 22. Qg5 {[%emt 0:05:04]} g6 {[%emt 0:12:17]} 23. Rd3 {[%emt 0:02:01]} a6 {[%emt 0:08:14]} 24. a4 axb5 {[%emt 0:00:26]} 25. axb5 {[%emt 0:03:21]} Ra8 {[%emt 0:00:33]} 26. Rad1 {[%emt 0:03:07]} Qc7 {[%emt 0:05:38]} 27. g4 {[%emt 0:14:22]} hxg4 {[%emt 0:02:13]} 28. h5 {[%emt 0:00:44]} g3 {[%emt 0:03:05]} 29. hxg6 {[%emt 0:06:13]} Ra2 {[%emt 0:04:50]} 30. gxf7+ {[%emt 0:08:58]} Kxf7 {[%emt 0:00:06]} 31. Nd6+ {[%emt 0:01:08]} Kf8 {[%emt 0:00:55]} 32. Qf6+ {[%emt 0:01:03]} Kg8 {[%emt 0:00:06]} 33. Rxg3+ {[%emt 0:01:01]} Nxg3 {[%emt 0:00:31]} 34. Qg6+ {[%emt 0:00:10]} 1-0

[Event "EYCC Open-U16 2019"]
[Site "Bratislava"]
[Date "2019.08.10"]
[Round "9.47"]
[White "Akulov, Lev"]
[Black "Jirousek, Jan"]
[Result "1/2-1/2"]
[ECO "B13"]
[WhiteElo "2068"]
[BlackElo "1924"]
[Annotator "NA"]
[PlyCount "90"]
[EventDate "2019.08.02"]
[EventType "swiss"]
[EventCountry "SVK"]
[SourceTitle "playchess.com"]
[Source "ChessBase"]
[SourceQuality "1"]
[TimeControl "40/5400+30:1800+30"]

1. e4 {[%emt 0:00:00]} c6 {[%emt 0:00:00]} 2. d4 {[%emt 0:00:00]} d5 {[%emt 0:00:00]} 3. exd5 {[%emt 0:00:29]} cxd5 {[%emt 0:00:00]} 4. Bf4 {[%emt 0:00:46]} Nf6 {[%emt 0:01:12]} 5. c3 {[%emt 0:02:13]} Nc6 {[%emt 0:01:36]} 6. Bd3 {[%emt 0:02:51]} g6 {[%emt 0:00:52]} 7. h3 {[%emt 0:02:43]} Bg7 {[%emt 0:00:37]} 8. Nd2 {[%emt 0:08:38]} Bf5 {[%emt 0:05:38]} 9. Bxf5 {[%emt 0:07:44]} gxf5 {[%emt 0:00:02]} 10. Qb3 {[%emt 0:00:28]} Qd7 {[%emt 0:01:07]} 11. Ndf3 {[%emt 0:04:32]} Ne4 {[%emt 0:04:17]} 12. Ne5 {[%emt 0:08:15]} Nxe5 {[%emt 0:02:18]} 13. dxe5 {[%emt 0:00:20]} e6 {[%emt 0:04:55]} 14. Rd1 {[%emt 0:08:17]} Rc8 {[%emt 0:09:24]} 15. Nf3 {[%emt 0:03:15]} O-O {[%emt 0:08:28]} 16. O-O {[%emt 0:02:06]} Qc7 {[%emt 0:02:29]} 17. Bh2 {[%emt 0:03:51]} Kh8 {[%emt 0:02:46]} 18. Rfe1 {[%emt 0:07:51]} Rg8 {[%emt 0:03:11]} 19. Re2 {[%emt 0:03:01]} Bh6 {[%emt 0:07:42]} 20. Rd4 {[%emt 0:08:30]} Ng5 {[%emt 0:04:17]} 21. Nxg5 {[%emt 0:01:13]} Bxg5 {[%emt 0:00:37]} 22. Kh1 {[%emt 0:15:44]} Rg6 {[%emt 0:07:44]} 23. f4 {[%emt 0:04:46]} Be7 {[%emt 0:01:22]} 24. Rc2 {[%emt 0:00:16]} a6 {[%emt 0:04:32]} 25. a4 {[%emt 0:00:49]} Bc5 {[%emt 0:03:36]} 26. Rd3 {[%emt 0:00:10]} Ba7 {[%emt 0:02:29]} 27. Rcd2 {[%emt 0:02:20]} Rcg8 {[%emt 0:07:00]} 28. g3 {[%emt 0:01:41]} Qc6 {[%emt 0:01:55]} 29. Rg2 {[%emt 0:00:34]} Rh6 {[%emt 0:03:34]} 30. h4 {[%emt 0:00:21]} d4 {[%emt 0:01:52]} 31. cxd4 {[%emt 0:00:50]} Qe4 {[%emt 0:02:56]} 32. Qd1 {[%emt 0:00:47]} Rxh4 {[%emt 0:02:23]} 33. Qe2 {[%emt 0:00:15]} Qxe2 {[%emt 0:01:14]} 34. Rxe2 {[%emt 0:00:01]} Rhg4 {[%emt 0:02:08]} 35. Kg2 {[%emt 0:00:45]} Rxf4 {[%emt 0:01:14]} 36. d5 {[%emt 0:00:45]} exd5 {[%emt 0:00:28]} 37. Rxd5 {[%emt 0:00:07]} Rxa4 {[%emt 0:00:58]} 38. Rd7 {[%emt 0:00:02]} Rb4 {[%emt 0:01:04]} 39. Rxf7 {[%emt 0:00:02]} Re4 {[%emt 0:00:55]} 40. Rxe4 {[%emt 0:00:00]} fxe4 {[%emt 0:00:00]} 41. Rxb7 {[%emt 0:11:30]} Bd4 {[%emt 0:02:57]} 42. e6 {[%emt 0:00:57]} Re8 {[%emt 0:11:54]} 43. Rb4 {[%emt 0:00:51]} Bf6 {[%emt 0:00:36]} 44. Rxe4 {[%emt 0:01:56]} Bxb2 {[%emt 0:00:32]} 45. Bg1 {[%emt 0:02:56]} Kg7 {[%emt 0:03:32]} 1/2-1/2

[Event "EYCC Open-U16 2019"]
[Site "Bratislava"]
[Date "2019.08.10"]
[Round "9.48"]
[White "Barak, David"]
[Black "Antal, Jakub"]
[Result "1-0"]
[ECO "A59"]
[WhiteElo "2015"]
[BlackElo "1963"]
[Annotator "NA"]
[PlyCount "45"]
[EventDate "2019.08.02"]
[EventType "swiss"]
[EventCountry "SVK"]
[SourceTitle "playchess.com"]
[Source "ChessBase"]
[SourceQuality "1"]
[TimeControl "40/5400+30:1800+30"]

1. d4 {[%emt 0:00:00]} Nf6 {[%emt 0:00:00]} 2. c4 {[%emt 0:00:00]} c5 {[%emt 0:00:00]} 3. d5 {[%emt 0:00:00]} b5 {[%emt 0:00:04]} 4. cxb5 {[%emt 0:00:00]} a6 {[%emt 0:00:32]} 5. bxa6 {[%emt 0:00:00]} g6 {[%emt 0:01:07]} 6. Nc3 {[%emt 0:00:00]} Bxa6 {[%emt 0:00:13]} 7. e4 {[%emt 0:00:02]} Bxf1 {[%emt 0:00:12]} 8. Kxf1 {[%emt 0:00:04]} d6 {[%emt 0:00:35]} 9. Nf3 {[%emt 0:00:07]} Bg7 {[%emt 0:01:51]} 10. g3 {[%emt 0:00:11]} O-O {[%emt 0:00:31]} 11. Kg2 {[%emt 0:00:04]} Nbd7 {[%emt 0:00:42]} 12. a4 {[%emt 0:00:22]} Ra6 {[%emt 0:18:32]} 13. Qc2 {[%emt 0:20:06]} Qa8 {[%emt 0:02:58]} 14. Ra3 {[%emt 0:20:54]} e6 {[%emt 0:31:16]} 15. Nb5 {[%emt 0:23:15]} Rc8 {[%emt 0:10:08]} 16. dxe6 {[%emt 0:06:24]} fxe6 {[%emt 0:00:07]} 17. Re1 {[%emt 0:00:19]} d5 {[%emt 0:09:44]} 18. exd5 {[%emt 0:01:47]} Nxd5 {[%emt 0:07:56]} 19. Kg1 {[%emt 0:04:03]} e5 {[%emt 0:02:38]} 20. Qe4 {[%emt 0:05:29]} N7f6 {[%emt 0:07:55]} 21. Qc4 {[%emt 0:02:49]} e4 {[%emt 0:01:30]} 22. Ng5 {[%emt 0:01:22]} Re8 {[%emt 0:01:20]} 23. Nc7 {[%emt 0:01:53]} 1-0